bitfinex-derivatives/quotes_SOLF0:USTF0_20250818
["timestamp","ask_amount","ask_price","bid_price","bid_amount"]
[1755496524990,3.03,182.53,182.46,8.3265]
[1755496525594,3.03,182.53,182.46,2.85]
[1755496526000,3.03,182.53,182.46,8.3267]
[1755496526295,3.03,182.53,182.46,4.51110614]
[1755496526499,3.03,182.53,182.47,2.85]
[1755496526798,3.03,182.53,182.47,8.3264]
[1755496527898,3.03,182.53,182.48,2.85]
[1755496528200,3.03,182.53,182.49,2.85]
[1755496528596,3.03,182.52,182.48,5.476]
[1755496528797,116.47217959,182.57,182.47,4.51110614]
[1755496529002,116.47217959,182.57,182.48,2.85]
[1755496529203,3.03,182.56,182.48,2.85]
[1755496529502,3.03,182.56,182.51,5.475]
[1755496529801,3.03,182.56,182.53,2.85]
[1755496530097,3.03,182.57,182.52,2.85]
[1755496530301,3.03,182.56,182.52,2.85]
[1755496530601,3.03,182.55,182.53,2.85]
[1755496530800,513.64,182.59,182.53,2.85]
[1755496530999,3.03,182.54,182.53,2.85]
[1755496531195,513.64,182.59,182.5,4.51110614]
[1755496531394,6.97383332,182.58,182.48,4.51110614]
[1755496531602,3.03,182.57,182.48,4.51110614]
[1755496531799,3.03,182.57,182.49,2.85]
[1755496532299,3.03,182.57,182.49,8.3257]
[1755496532694,3.03,182.57,182.49,2.85]
[1755496533205,3.03,182.57,182.5,5.4754]
[1755496533404,3.03,182.57,182.49,2.85]
[1755496533902,3.03,182.57,182.5,5.4755]
[1755496534206,3.03,182.57,182.5,8.3255]
[1755496535396,3.94345888,182.56,182.5,2.85]
[1755496535603,3.03,182.55,182.49,5.4757]
[1755496535902,3.03,182.55,182.49,2.85]
[1755496536099,3.03,182.55,182.49,8.3257]
[1755496537402,3.03,182.55,182.49,2.85]
[1755496537799,3.03,182.55,182.49,8.3257]
[1755496537993,145.16,182.54,182.47,2.85]
[1755496538199,3.03,182.52,182.47,2.85]
[1755496538496,3.03,182.52,182.48,2.85]
[1755496539095,3.03,182.52,182.47,5.4764]
[1755496539292,3.03,182.52,182.49,2.85]
[1755496539696,3.03,182.53,182.49,2.85]
[1755496539892,3.03,182.53,182.5,2.85]
[1755496540099,145.16,182.54,182.5,2.85]
[1755496540300,3.03,182.54,182.49,2.85]
[1755496540503,145.12,182.58,182.49,2.85]
[1755496540703,3.03,182.56,182.49,2.85]
[1755496540906,3.03,182.56,182.52,2.85]
[1755496541301,5.4742,182.55,182.52,2.85]
[1755496541605,3.03,182.54,182.53,2.85]
[1755496541906,8.5038,182.56,182.53,2.85]
[1755496542108,3.03,182.57,182.55,2.85]
[1755496542299,3.03,182.57,182.56,2.85]
[1755496542806,3.03,182.57,182.55,5.4739]
[1755496543006,3.03,182.57,182.55,8.3239]
[1755496543209,145.12,182.58,182.56,2.85]
[1755496543406,145.12,182.58,182.55,2.85]
[1755496543706,3.03,182.57,182.52,2.85]
[1755496543903,3.03,182.6,182.52,2.85]
[1755496544303,3.03,182.6,182.53,4.51110614]
[1755496544500,145.04,182.62,182.53,4.51110614]
[1755496544501,3.03,182.59,182.53,4.51110614]
[1755496544701,3.03,182.61,182.54,2.85]
[1755496544901,6.98318154,182.6,182.54,2.85]
[1755496545104,3.03,182.6,182.54,2.85]
[1755496545710,3.03,182.61,182.54,2.85]
[1755496546304,3.03,182.6,182.58,2.85]
[1755496546510,3.03,182.6,182.59,2.85]
[1755496546702,3.03,182.67,182.59,8.3227]
[1755496546908,3.03,182.65,182.6,2.85]
[1755496548011,3.03,182.65,182.58,5.4729]
[1755496548215,3.03,182.65,182.58,2.85]
[1755496548805,3.03,182.65,182.57,2.85]
[1755496549209,3.03,182.65,182.59,2.85]
[1755496551117,3.03,182.65,182.6,2.85]
[1755496551311,3.03,182.66,182.6,2.85]
[1755496551617,5.4715,182.64,182.6,2.85]
[1755496551816,3.03,182.62,182.6,2.85]
[1755496552117,5.4715,182.64,182.6,2.85]
[1755496552314,3.05,182.63,182.59,5.4728]
[1755496552512,3.05,182.62,182.61,2.98]
[1755496558114,3.05,182.67,182.59,4.51110614]
[1755496558318,3.05,182.67,182.64,2.98]
[1755496558519,3.05,182.7,182.64,2.98]
[1755496558712,5.4701,182.69,182.64,2.98]
[1755496559120,3.05,182.67,182.64,2.98]
[1755496559525,3.05,182.67,182.65,2.98]
[1755496559718,3.05,182.67,182.64,5.4711]
[1755496559719,3.05,182.67,182.66,2.98]
[1755496560118,3.05,182.69,182.62,4.51110614]
[1755496560423,3.05,182.67,182.66,2.98]
[1755496561226,3.05,182.7,182.66,2.98]
[1755496564221,3.05,182.7,182.67,2.98]
[1755496564621,3.05,182.7,182.62,4.51110614]
[1755496564826,3.05,182.7,182.66,2.98]
[1755496565224,3.05,182.7,182.61,2.98]
[1755496565425,3.05,182.68,182.61,2.98]
[1755496566024,3.05,182.68,182.6,2.98]
[1755496566230,3.05,182.68,182.59,4.51110614]
[1755496566433,3.90332383,182.67,182.59,4.51110614]
[1755496566631,3.05,182.66,182.59,7.49110614]
[1755496566837,3.05,182.66,182.56,2.98]
[1755496567037,3.05,182.64,182.56,2.98]
[1755496567931,5.4722,182.62,182.56,5.4737]
[1755496568134,3.05,182.61,182.57,2.98]
[1755496568536,3.05,182.61,182.58,2.98]
[1755496568830,3.05,182.59,182.53,2.98]
[1755496569439,3.05,182.58,182.55,2.98]
[1755496569638,3.05,182.6,182.55,2.98]
[1755496570039,3.05,182.66,182.56,2.98]
[1755496570239,3.05,182.64,182.56,2.98]
[1755496570440,3.05,182.64,182.59,2.98]
[1755496570740,3.05,182.64,182.56,2.98]
[1755496571134,3.05,182.64,182.57,2.98]
[1755496571333,3.05,182.64,182.59,2.98]
[1755496571738,3.05,182.64,182.6,5.4723]
[1755496571938,3.05,182.63,182.62,2.98]
[1755496572335,3.05,182.63,182.59,4.51110614]
[1755496572531,3.05,182.62,182.6,2.98]
[1755496572735,3.05,182.62,182.61,2.98]
[1755496572941,144.52,182.69,182.61,2.98]
[1755496573137,3.05,182.67,182.6,2.98]
[1755496573342,3.05,182.67,182.62,5.4717]
[1755496573545,3.05,182.67,182.59,4.51110614]
[1755496573730,16.47,182.73,182.64,2.98]
[1755496573937,3.05,182.71,182.64,2.98]
[1755496575042,3.05,182.69,182.6,2.98]
[1755496575442,3.05,182.65,182.61,2.98]
[1755496575638,3.05,182.65,182.62,2.98]
[1755496576041,3.05,182.65,182.6,5.4724]
[1755496576239,3.05,182.63,182.62,2.98]
[1755496577045,3.05,182.66,182.62,2.98]
[1755496577248,3.05,182.65,182.59,4.51110614]
[1755496577447,3.05,182.65,182.6,2.98]
[1755496577648,3.05,182.65,182.61,2.98]
[1755496578242,8.5212,182.65,182.61,2.98]
[1755496578451,3.05,182.64,182.61,2.98]
[1755496578846,3.05,182.63,182.58,5.4731]
[1755496579045,3.05,182.63,182.59,2.98]
[1755496579344,3.05,182.63,182.6,2.98]
[1755496579538,3.05,182.62,182.6,2.98]
[1755496579744,3.05,182.61,182.6,2.98]
[1755496580450,3.05,182.61,182.6,8.4526]
[1755496580649,3.05,182.65,182.6,5.4726]
[1755496580849,3.05,182.65,182.62,2.98]
[1755496581048,3.05,182.64,182.63,2.98]
[1755496581350,5.4705,182.67,182.63,2.98]
[1755496581549,3.05,182.64,182.63,2.98]
[1755496582547,2.92,182.71,182.63,2.98]
[1755496583244,2.92,182.69,182.63,2.98]
[1755496583650,2.92,182.69,182.64,2.95]
[1755496583854,2.92,182.69,182.59,4.51110614]
[1755496584053,2.92,182.69,182.6,2.95]
[1755496584455,5.4707,182.67,182.62,5.4717]
[1755496584651,2.92,182.66,182.62,2.95]
[1755496584853,2.92,182.66,182.62,8.4219]
[1755496585248,2.92,182.66,182.58,2.95]
[1755496585446,2.92,182.64,182.57,5.4734]
[1755496586155,3.87181506,182.63,182.57,5.4734]
[1755496586452,2.92,182.64,182.57,5.4734]
[1755496586660,2.92,182.62,182.56,5.4737]
[1755496587059,2.92,182.62,182.55,2.95]
[1755496588356,2.92,182.59,182.54,2.95]
[1755496588553,2.92,182.58,182.54,2.95]
[1755496588757,2.92,182.58,182.56,5.4737]
[1755496588960,2.92,182.58,182.57,2.95]
[1755496589662,2.92,182.58,182.57,8.4235]
[1755496590551,6.07962018,182.76,182.57,0.54]
[1755496590756,2.92,182.74,182.67,2.95]
[1755496590955,3.84647346,182.73,182.69,4.51110614]
[1755496591158,2.92,182.72,182.71,2.95]
[1755496591463,2.92,182.72,182.69,4.51110614]
[1755496591660,2.92,182.72,182.71,5.4693]
[1755496591860,2.92,182.72,182.69,4.51110614]
[1755496592171,2.92,182.72,182.67,2.95]
[1755496592557,3.84477501,182.71,182.64,8.4212]
[1755496592863,2.92,182.7,182.64,2.95]
[1755496593560,2.92,182.7,182.66,4.51110614]
[1755496593767,2.92,182.69,182.68,5.4701]
[1755496594065,2.92,182.76,182.66,4.51110614]
[1755496594259,3.85104724,182.75,182.66,9.98170614]
[1755496594458,3.85104724,182.74,182.66,9.98170614]
[1755496594657,6.77104724,182.73,182.66,9.98170614]
[1755496594960,2.92,182.71,182.66,9.98170614]
[1755496595167,2.92,182.71,182.67,5.4703]
[1755496595360,2.92,182.76,182.68,4.51110614]
[1755496595559,2.92,182.74,182.68,7.46110614]
[1755496595755,3.85045916,182.73,182.69,5.4697]
[1755496595965,16.47,182.78,182.69,8.4197]
[1755496596164,2.92,182.71,182.7,5.4694]
[1755496596369,2.92,182.7,182.69,2.95]
[1755496596664,2.92,182.7,182.69,8.4196]
[1755496596862,2.92,182.7,182.68,4.51110614]
[1755496596863,2.92,182.69,182.66,4.51110614]
[1755496597063,2.92,182.69,182.65,2.95]
[1755496598364,2.92,182.69,182.65,8.421]
[1755496598768,2.92,182.69,182.65,2.95]
[1755496598968,2.92,182.69,182.64,8.4213]
[1755496599468,2.92,182.68,182.67,2.95]
[1755496599667,2.92,182.7,182.68,2.95]
[1755496599967,16.47,182.77,182.63,4.51110614]
[1755496600163,3.84880063,182.76,182.7,4.51110614]
[1755496600362,2.92,182.74,182.73,4.51110614]
[1755496600669,367.72,182.81,182.73,4.51110614]
[1755496600670,2.92,182.76,182.74,8.4182]
[1755496601671,367.72,182.81,182.74,2.95]
[1755496601672,2.92,182.8,182.74,2.95]
[1755496601969,367.72,182.81,182.75,2.95]
[1755496601970,2.92,182.77,182.75,2.95]
[1755496602168,2.92,182.76,182.75,2.95]
[1755496602366,2.92,182.76,182.7,2.95]
[1755496603370,367.72,182.81,182.75,5.468]
[1755496603570,2.92,182.77,182.75,8.418]
[1755496604068,2.92,182.77,182.76,2.95]
[1755496604265,2.92,182.79,182.76,2.95]
[1755496604569,2.92,182.78,182.76,2.95]
[1755496604866,2.92,182.83,182.77,2.95]
[1755496605068,2.92,182.81,182.77,2.95]
[1755496605368,2.92,182.81,182.75,2.95]
[1755496605565,2.92,182.81,182.75,8.4179]
[1755496605766,2.92,182.81,182.7,2.95]
[1755496606363,2.92,182.83,182.77,2.95]
[1755496606866,2.92,182.85,182.77,2.95]
[1755496607265,2.92,182.85,182.77,9.92981714]
[1755496607567,2.92,182.9,182.78,2.95]
[1755496608161,2.92,182.9,182.83,8.4156]
[1755496608566,2.92,182.9,182.83,5.4656]
[1755496608764,2.92,182.9,182.83,8.4156]
[1755496609171,2.92,182.9,182.83,2.95]
[1755496610274,5.4648,182.87,182.82,5.4659]
[1755496610468,5.4648,182.87,182.73,6.97981714]
[1755496610469,2.92,182.9,182.81,2.95]
[1755496610674,2.92,182.88,182.79,2.95]
[1755496611070,5.4657,182.84,182.79,2.95]
[1755496611276,5.4657,182.84,182.81,2.95]
[1755496611277,2.92,182.83,182.81,2.95]
[1755496611670,2.92,182.82,182.81,2.95]
[1755496611876,16.47,182.9,182.77,5.4674]
[1755496612172,3.88526571,182.89,182.77,8.4174]
[1755496612374,2.95,182.87,182.78,8.4072]
[1755496614175,2.95,182.87,182.78,2.94]
[1755496617376,2.95,182.87,182.79,2.94]
[1755496617781,2.95,182.87,182.79,8.4068]
[1755496617984,2.95,182.87,182.8,2.94]
[1755496618676,2.95,182.87,182.73,90.77176337]
[1755496618677,2.95,182.87,182.78,2.94]
[1755496619074,2.95,182.89,182.74,2.94]
[1755496619274,2.95,182.89,182.83,2.94]
[1755496619471,2.95,182.92,182.83,2.94]
[1755496619779,0.51642247,182.93,182.82,6.97981714]
[1755496619780,2.95,182.91,182.82,6.97981714]
[1755496619984,3.46642247,182.93,182.9,2.94]
[1755496620181,2.95,182.92,182.9,2.94]
[1755496620476,2.95,182.91,182.82,6.97981714]
[1755496620684,2.95,182.91,182.89,2.94]
[1755496620881,2.95,182.9,182.87,5.4643]
[1755496621081,2.95,182.9,182.88,2.94]
[1755496621877,2.95,182.89,182.88,2.94]
[1755496622279,2.95,182.89,182.85,5.4649]
[1755496622478,2.95,182.89,182.88,2.94]
[1755496622674,2.95,182.92,182.88,2.94]
[1755496622876,2.95,182.9,182.88,2.94]
[1755496623082,2.95,182.89,182.88,2.94]
[1755496623581,0.51642247,182.93,182.88,2.94]
[1755496623782,2.95,182.92,182.88,2.94]
[1755496623982,2.95,182.9,182.88,2.94]
[1755496624183,2.95,182.89,182.88,2.94]
[1755496625587,2.95,182.89,182.83,2.94]
[1755496626288,5.4636,182.91,182.86,2.94]
[1755496626594,2.95,182.89,182.87,2.94]
[1755496626793,2.95,182.92,182.84,8.4053]
[1755496627186,2.95,182.92,182.85,2.94]
[1755496627387,5.4639,182.9,182.84,5.4653]
[1755496627583,2.95,182.92,182.83,5.4657]
[1755496627888,2.95,182.84,182.78,6.97981714]
[1755496628083,2.95,182.84,182.8,2.94]
[1755496629090,2.95,182.83,182.8,2.94]
[1755496629291,2.95,182.9,182.8,2.94]
[1755496629683,5.4659,182.83,182.8,2.94]
[1755496629888,2.95,182.82,182.8,2.94]
[1755496630090,2.95,182.82,182.81,2.94]
[1755496630789,159.91,182.91,182.74,6.97981714]
[1755496630988,2.95,182.81,182.8,2.94]
[1755496632298,2.95,182.81,182.75,2.94]
[1755496632994,2.95,182.81,182.79,2.94]
[1755496633998,2.95,182.81,182.8,2.94]
[1755496634201,0.51642247,182.93,182.78,6.97981714]
[1755496634395,3.46642247,182.93,182.84,2.94]
[1755496634796,0.51642247,182.93,182.84,2.94]
[1755496634996,2.95,182.88,182.84,2.94]
[1755496635395,2.95,182.88,182.85,5.465]
[1755496635594,2.95,182.87,182.8,2.94]
[1755496635993,5.465,182.86,182.8,8.4064]
[1755496636194,5.465,182.86,182.81,2.94]
[1755496636387,2.95,182.84,182.81,2.94]
[1755496636593,5.4655,182.84,182.79,5.4667]
[1755496636896,16.47,182.9,182.78,2.94]
[1755496637195,2.95,182.88,182.78,5.4671]
[1755496637391,2.95,182.86,182.78,5.4671]
[1755496637596,5.466,182.83,182.78,5.4671]
[1755496637896,2.95,182.81,182.79,2.94]
[1755496639200,2.95,182.8,182.79,2.94]
[1755496639701,2.95,182.8,182.79,8.4069]
[1755496640095,2.95,182.8,182.79,2.94]
[1755496643499,6.07962018,182.92,182.79,4.48510172]
[1755496643500,3.07,182.85,182.79,4.48510172]
[1755496643702,3.07,182.85,182.8,2.93]
[1755496643903,3.07,182.85,182.83,5.4657]
[1755496644104,3.07,182.85,182.83,8.3957]
[1755496644302,0.51642247,182.93,182.82,4.48510172]
[1755496644499,3.58642247,182.93,182.9,4.48510172]
[1755496644699,3.58642247,182.93,182.91,2.93]
[1755496644899,3.58642247,182.93,182.92,5.463]
[1755496645407,3.58642247,182.93,182.87,7.41510172]
[1755496645604,3.91251043,182.92,182.87,7.41510172]
[1755496645800,0.51642247,182.93,182.87,4.48510172]
[1755496646108,3.07,182.92,182.89,8.3937]
[1755496646404,3.07,182.91,182.89,8.3937]
[1755496647000,3.07,182.92,182.86,7.41510172]
[1755496647501,3.07,182.9,182.86,4.48510172]
[1755496647703,0.51642247,182.93,182.89,2.93]
[1755496647903,3.07,182.91,182.89,2.93]
[1755496648409,0.51642247,182.93,182.87,2.93]
[1755496648598,3.58642247,182.93,182.87,2.93]
[1755496649004,3.58642247,182.93,182.89,5.4638]
[1755496649308,3.58642247,182.93,182.89,8.3938]
[1755496649703,0.51642247,182.93,182.89,5.4638]
[1755496650007,3.07,182.92,182.9,2.93]
[1755496650310,3.07,182.92,182.88,5.4642]
[1755496650610,3.07,182.92,182.87,2.93]
[1755496650810,3.07,182.9,182.83,2.93]
[1755496651305,0.51642247,182.93,182.82,6.96696582]
[1755496651509,3.07,182.92,182.89,2.93]
[1755496651712,3.07,182.91,182.89,2.93]
[1755496651912,3.07,182.91,182.89,8.3937]
[1755496652711,3.07,182.91,182.9,5.4636]
[1755496653115,0.51642247,182.93,182.9,5.4636]
[1755496653417,3.07,182.91,182.9,5.4636]
[1755496655514,5.97912247,182.93,182.89,8.3938]
[1755496655712,3.07,182.92,182.83,2.93]
[1755496656216,3.07,182.92,182.86,5.4646]
[1755496656816,3.07,182.92,182.87,5.4644]
[1755496657216,3.07,182.92,182.83,2.93]
[1755496658012,3.07,182.92,182.87,5.4642]
[1755496658218,3.07,182.92,182.88,2.93]
[1755496658614,3.07,182.92,182.83,2.93]
[1755496658812,3.07,182.92,182.82,6.96696582]
[1755496659012,3.07,182.92,182.83,2.93]
[1755496659210,3.07,182.92,182.86,5.4646]
[1755496659618,0.51642247,182.93,182.87,2.93]
[1755496659815,0.51642247,182.93,182.91,5.4632]
[1755496660020,3.58642247,182.93,182.86,6.96696582]
[1755496660210,3.58642247,182.93,182.91,2.93]
[1755496660211,3.07,182.92,182.91,2.93]
[1755496660410,0.51642247,182.93,182.92,5.463]
[1755496660615,0.51642247,182.93,182.92,8.393]
[1755496660811,0.51642247,182.93,182.9,5.4634]
[1755496661019,3.9119825,182.92,182.81,2.93]
[1755496661219,3.07,182.91,182.81,2.93]
[1755496661520,3.07,182.91,182.86,5.4646]
[1755496661717,3.07,182.91,182.86,2.93]
[1755496663025,3.07,182.91,182.87,5.4643]
[1755496663222,3.07,182.91,182.87,2.93]
[1755496664522,3.07,182.92,182.81,2.93]
[1755496665019,5.4633,182.91,182.87,5.4643]
[1755496665324,3.07,182.89,182.87,8.3943]
[1755496665516,3.07,182.89,182.88,5.4642]
[1755496667217,3.07,182.88,182.87,5.4644]
[1755496667524,0.51642247,182.93,182.86,5.4647]
[1755496667525,3.07,182.87,182.86,5.4647]
[1755496669720,5.4633,182.91,182.87,8.3944]
[1755496669918,3.07,182.89,182.87,8.3944]
[1755496670518,5.4637,182.9,182.86,5.4647]
[1755496670724,3.07,182.87,182.86,5.4647]
[1755496670923,3.07,182.87,182.86,8.3947]
[1755496671721,3.07,182.87,182.83,2.93]
[1755496672424,0.51642247,182.93,182.8,4.4821355]
[1755496672425,3.08,182.86,182.85,5.4649]
[1755496672620,3.08,182.88,182.85,2.97]
[1755496672821,3.08,182.87,182.86,8.4347]
[1755496674532,3.08,182.87,182.86,5.4647]
[1755496675331,3.08,182.87,182.86,8.4347]
[1755496675829,3.08,182.92,182.88,2.97]
[1755496676029,3.08,182.9,182.87,8.4345]
[1755496676231,3.08,182.92,182.84,2.97]
[1755496676530,3.08,182.9,182.84,2.97]
[1755496677124,3.08,182.9,182.89,5.4637]
[1755496677519,3.08,182.92,182.89,5.4637]
[1755496677724,3.08,182.92,182.9,5.4636]
[1755496679232,3.08,182.92,182.89,5.4639]
[1755496679430,3.96912803,182.91,182.84,2.97]
[1755496679729,3.08,182.9,182.84,2.97]
[1755496679932,5.4633,182.91,182.84,2.97]
[1755496680124,3.08,182.91,182.84,2.97]
[1755496680624,3.08,182.9,182.88,2.97]
[1755496680834,3.08,182.9,182.89,2.97]
[1755496681129,3.08,182.9,182.89,8.4339]
[1755496681328,0.51642247,182.93,182.86,4.4821355]
[1755496681530,3.08,182.91,182.9,2.97]
[1755496681725,3.08,182.91,182.9,8.4336]
[1755496682032,3.59642247,182.93,182.92,2.97]
[1755496682230,0.51642247,182.93,182.92,2.97]
[1755496682427,3.59642247,182.93,182.92,8.433]
[1755496682831,0.51642247,182.93,182.92,8.433]
[1755496683227,3.59642247,182.93,182.86,4.4821355]
[1755496683427,3.59642247,182.93,182.87,2.97]
[1755496683626,3.08,182.91,182.88,2.97]
[1755496683825,5.4632,182.92,182.88,2.97]
[1755496684038,3.08,182.89,182.88,2.97]
[1755496684231,3.08,182.9,182.88,2.97]
[1755496684436,5.97922247,182.93,182.89,8.4336]
[1755496684638,3.08,182.9,182.89,8.4336]
[1755496685132,3.08,182.9,182.89,5.4636]
[1755496690837,0.51642247,182.93,182.87,2.97]
[1755496691133,0.51642247,182.93,182.9,2.97]
[1755496691736,0.51642247,182.93,182.92,5.463]
[1755496691931,3.59642247,182.93,182.92,5.463]
[1755496692831,3.59642247,182.93,182.92,8.433]
[1755496693036,3.59642247,182.93,182.92,5.463]
[1755496693739,3.59642247,182.93,182.91,5.4632]
[1755496694339,3.08,182.92,182.91,5.4632]
[1755496695039,3.08,182.92,182.9,5.4635]
[1755496695240,3.08,182.92,182.89,4.4821355]
[1755496695439,3.08,182.91,182.89,7.4521355]
[1755496695641,3.08,182.91,182.9,5.4636]
[1755496696742,0.51642247,182.93,182.91,5.4632]
[1755496696940,0.51642247,182.93,182.92,2.97]
[1755496697340,0.51642247,182.93,182.9,5.4635]
[1755496697341,3.08,182.92,182.9,5.4635]
[1755496697732,3.08,182.92,182.88,2.97]
[1755496698045,3.08,182.92,182.9,2.97]
[1755496698549,3.08,182.91,182.9,8.4336]
[1755496700046,3.08,182.91,182.9,5.4636]
[1755496700546,0.51642247,182.93,182.9,5.4636]
[1755496700748,3.08,182.92,182.91,2.97]
[1755496701056,3.08,182.92,182.9,5.4636]
[1755496701241,3.08,182.91,182.9,8.4336]
[1755496705149,3.08,182.91,182.9,5.4636]
[1755496707543,3.08,182.91,182.86,4.4821355]
[1755496707741,3.99539429,182.9,182.84,3.07]
[1755496707945,3.13,182.89,182.84,3.07]
[1755496708145,3.13,182.89,182.85,3.07]
[1755496708346,3.13,182.89,182.87,5.4643]
[1755496712664,3.13,182.88,182.87,5.4643]
[1755496713158,3.13,182.88,182.87,8.5343]
[1755496715052,3.13,182.88,182.87,5.4643]
[1755496722472,3.13,182.88,182.86,5.4647]
[1755496722972,3.13,182.88,182.86,3.07]
[1755496723267,3.13,182.88,182.87,5.4645]
[1755496725471,5.4635,182.91,182.87,5.4645]
[1755496725672,3.13,182.89,182.88,3.07]
[1755496726375,3.13,182.9,182.88,5.4641]
[1755496726567,3.13,182.9,182.89,3.07]
[1755496726765,4.00783051,182.9,182.88,5.4641]
[1755496726965,3.13,182.89,182.88,8.5341]
[1755496728177,5.97922247,182.93,182.89,5.4639]
[1755496728370,3.64642247,182.93,182.87,3.07]
[1755496728566,0.51642247,182.93,182.89,4.4821355]
[1755496728767,3.13,182.92,182.9,3.07]
[1755496728970,3.13,182.92,182.91,3.07]
[1755496729279,3.13,182.92,182.91,8.5333]
[1755496729968,3.13,182.92,182.91,5.4633]
[1755496730370,7.13834675,182.92,182.9,5.4636]
[1755496730674,3.13,182.91,182.9,5.4636]
[1755496732572,3.13,182.91,182.9,8.4336]
[1755496733577,3.06,182.92,182.9,5.4636]
[1755496735280,3.06,182.92,182.9,8.4336]
[1755496735472,3.06,182.92,182.9,5.4636]
[1755496736477,3.06,182.91,182.9,8.4336]
[1755496737480,3.06,182.9,182.88,5.464]
[1755496739684,3.06,182.9,182.85,2.97]
[1755496740184,3.06,182.9,182.87,5.4643]
[1755496740386,3.06,182.9,182.87,8.4343]
[1755496740590,4.03042999,182.89,182.85,2.97]
[1755496740778,3.06,182.88,182.86,2.97]
[1755496741081,5.4634,182.91,182.83,4.4821355]
[1755496741278,3.06,182.89,182.87,2.97]
[1755496742178,5.4634,182.91,182.87,5.4643]
[1755496742385,3.06,182.89,182.87,8.4343]
[1755496742588,3.06,182.88,182.87,8.4343]
[1755496743183,5.4631,182.92,182.89,5.4639]
[1755496743383,3.06,182.9,182.89,5.4639]
[1755496743580,7.09070163,182.9,182.89,5.4639]
[1755496743782,7.09070163,182.9,182.89,8.4339]
[1755496744883,7.09070163,182.9,182.89,5.4639]
[1755496745083,7.09070163,182.9,182.89,8.4339]
[1755496746281,4.03070163,182.9,182.89,8.4339]
[1755496746482,3.06,182.92,182.91,5.4633]
[1755496746686,7.08989695,182.92,182.91,5.4633]
[1755496747989,3.06,182.91,182.9,5.4635]
[1755496748186,4.02989695,182.91,182.9,5.4635]
[1755496748396,7.08989695,182.91,182.9,5.4635]
[1755496750493,7.08989695,182.91,182.9,8.4335]
[1755496751284,7.08989695,182.91,182.9,5.4635]
[1755496751680,7.08989695,182.91,182.9,8.4335]
[1755496752692,0.51642247,182.93,182.92,8.433]
[1755496752885,7.60698917,182.93,182.92,8.433]
[1755496753789,4.54698917,182.93,182.92,8.433]
[1755496753987,7.60698917,182.93,182.92,8.433]
[1755496754585,4.54698917,182.93,182.92,8.433]
[1755496754792,7.08969376,182.93,182.92,5.463]